[Event "Titled Tuesday Blitz May 23 Late 2023"]
[White "Zaitsev, Alexander"]
[Black "Manukyan, Sargis A."]
[WhiteFideId "4164490"]
[BlackFideId "13303970"]
[WhiteElo "2373"]
[BlackElo "2187"]
[Result "0-1"]
[Round "11"]
[TimeControl "180+2"]
[Date "2023.05.23"]
[WhiteClock "0:00:00"]
[BlackClock "0:00:34"]

1. e4 {[%clk 0:02:55]}  c5 {[%clk 0:03:00]} 2. Nf3 {[%clk 0:02:55]}  d6 {[%clk 0:03:00]} 3. d4 {[%clk 0:02:54]}  cxd4 {[%clk 0:03:01]} 4. Qxd4 {[%clk 0:02:54]}  Nf6 {[%clk 0:03:02]} 5. Nc3 {[%clk 0:02:52]}  Nc6 {[%clk 0:03:03]} 6. Bb5 {[%clk 0:02:52]}  Bd7 {[%clk 0:03:04]} 7. Bxc6 {[%clk 0:02:51]}  Bxc6 {[%clk 0:03:05]} 8. Bg5 {[%clk 0:02:52]}  e6 {[%clk 0:03:05]} 9. O-O-O {[%clk 0:02:49]}  h6 {[%clk 0:03:05]} 10. Bxf6 {[%clk 0:02:30]}  Qxf6 {[%clk 0:03:06]} 11. e5 {[%clk 0:02:12]}  dxe5 {[%clk 0:02:35]} 12. Nxe5 {[%clk 0:02:12]}  Be7 {[%clk 0:02:35]} 13. Nxc6 {[%clk 0:02:09]}  bxc6 {[%clk 0:02:36]} 14. Qd7+ {[%clk 0:02:06]}  Kf8 {[%clk 0:02:36]} 15. Qxc6 {[%clk 0:02:02]}  Rb8 {[%clk 0:02:36]} 16. Qc7 {[%clk 0:01:45]}  Re8 {[%clk 0:02:18]} 17. Ne4 {[%clk 0:01:33]}  Qg6 {[%clk 0:02:12]} 18. Nd6 {[%clk 0:01:20]}  Bxd6 {[%clk 0:02:11]} 19. Qxd6+ {[%clk 0:01:18]}  Kg8 {[%clk 0:02:11]} 20. g3 {[%clk 0:01:08]}  Kh7 {[%clk 0:02:11]} 21. Rhe1 {[%clk 0:01:01]}  Rc8 {[%clk 0:02:07]} 22. c3 {[%clk 0:01:00]}  Rb8 {[%clk 0:02:02]} 23. Qd3 {[%clk 0:00:50]}  f5 {[%clk 0:02:02]} 24. Re2 {[%clk 0:00:45]}  Rhc8 {[%clk 0:01:59]} 25. Rde1 {[%clk 0:00:44]}  Rb6 {[%clk 0:01:59]} 26. h3 {[%clk 0:00:38]}  Rcc6 {[%clk 0:01:47]} 27. g4 {[%clk 0:00:38]}  Qf6 {[%clk 0:01:44]} 28. gxf5 {[%clk 0:00:35]}  exf5 {[%clk 0:01:45]} 29. Re5 {[%clk 0:00:35]}  Qg5+ {[%clk 0:01:37]} 30. Kc2 {[%clk 0:00:32]}  Rf6 {[%clk 0:01:35]} 31. R1e3 {[%clk 0:00:27]}  Qf4 {[%clk 0:01:33]} 32. Re2 {[%clk 0:00:23]}  Rbd6 {[%clk 0:01:31]} 33. Rd5 {[%clk 0:00:21]}  Rb6 {[%clk 0:01:23]} 34. b3 {[%clk 0:00:20]}  a6 {[%clk 0:01:21]} 35. Qe3 {[%clk 0:00:18]}  Qh4 {[%clk 0:01:18]} 36. Rxf5 {[%clk 0:00:16]}  Rbe6 {[%clk 0:01:11]} 37. Re5 {[%clk 0:00:15]}  Rxe5 {[%clk 0:01:02]} 38. Qxe5 {[%clk 0:00:16]}  Qxh3 {[%clk 0:01:03]} 39. Qe4+ {[%clk 0:00:15]}  Kg8 {[%clk 0:01:02]} 40. Qd5+ {[%clk 0:00:14]}  Kh7 {[%clk 0:00:52]} 41. Qd3+ {[%clk 0:00:14]}  Qf5 {[%clk 0:00:49]} 42. Qxf5+ {[%clk 0:00:13]}  Rxf5 {[%clk 0:00:50]} 43. Kd3 {[%clk 0:00:14]}  h5 {[%clk 0:00:50]} 44. Ke4 {[%clk 0:00:14]}  Kg6 {[%clk 0:00:49]} 45. f4 {[%clk 0:00:14]}  Kf6 {[%clk 0:00:48]} 46. Rg2 {[%clk 0:00:14]}  h4 {[%clk 0:00:45]} 47. Rh2 {[%clk 0:00:14]}  Rh5 {[%clk 0:00:46]} 48. c4 {[%clk 0:00:14]}  h3 {[%clk 0:00:46]} 49. b4 {[%clk 0:00:14]}  Rh4 {[%clk 0:00:46]} 50. Kf3 {[%clk 0:00:13]}  Kf5 {[%clk 0:00:46]} 51. Kg3 {[%clk 0:00:14]}  Rxf4 {[%clk 0:00:45]} 52. Rxh3 {[%clk 0:00:11]}  Rxc4 {[%clk 0:00:45]} 53. Rh4 {[%clk 0:00:05]}  Rc3+ {[%clk 0:00:44]} 54. Kf2 {[%clk 0:00:06]}  Rc2+ {[%clk 0:00:45]} 55. Ke3 {[%clk 0:00:06]}  Rxa2 {[%clk 0:00:45]} 56. Kd4 {[%clk 0:00:07]}  g5 {[%clk 0:00:45]} 57. Rh8 {[%clk 0:00:07]}  Kg4 {[%clk 0:00:34]} 58. Kc5 {[%clk 0:00:06]}  Kg3 {[%clk 0:00:34]} 59. Rg8 {[%clk 0:00:00]}  g4 {[%clk 0:00:34]} 0-1


[Site "https://www.chess.com"]

[Event "Titled Tuesday Blitz May 23 Late 2023"]
[White "Goroshkov, Maksym"]
[Black "Mickiewicz, Piotr"]
[WhiteFideId "14142716"]
[BlackFideId "1114891"]
[WhiteElo "2322"]
[BlackElo "2246"]
[Result "1-0"]
[Round "11"]
[TimeControl "180+2"]
[Date "2023.05.23"]
[WhiteClock "0:01:17"]
[BlackClock "0:01:19"]

1. e4 {[%clk 0:02:55]}  c5 {[%clk 0:03:00]} 2. d4 {[%clk 0:02:55]}  cxd4 {[%clk 0:03:00]} 3. c3 {[%clk 0:02:56]}  d3 {[%clk 0:03:00]} 4. Bxd3 {[%clk 0:02:53]}  Nc6 {[%clk 0:03:01]} 5. Nf3 {[%clk 0:02:52]}  g6 {[%clk 0:03:02]} 6. O-O {[%clk 0:02:52]}  Bg7 {[%clk 0:03:03]} 7. Nbd2 {[%clk 0:02:53]}  d6 {[%clk 0:02:59]} 8. Nb3 {[%clk 0:02:53]}  Nf6 {[%clk 0:02:58]} 9. Nbd4 {[%clk 0:02:54]}  O-O {[%clk 0:02:58]} 10. Bg5 {[%clk 0:02:53]}  Bd7 {[%clk 0:02:52]} 11. Qd2 {[%clk 0:02:51]}  Rc8 {[%clk 0:02:50]} 12. Bh6 {[%clk 0:02:50]}  Qa5 {[%clk 0:02:35]} 13. Bxg7 {[%clk 0:02:49]}  Kxg7 {[%clk 0:02:34]} 14. Nxc6 {[%clk 0:02:35]}  Bxc6 {[%clk 0:02:32]} 15. Rfe1 {[%clk 0:02:35]}  e5 {[%clk 0:02:18]} 16. Nh4 {[%clk 0:02:20]}  h6 {[%clk 0:02:11]} 17. Re3 {[%clk 0:02:19]}  d5 {[%clk 0:01:58]} 18. exd5 {[%clk 0:02:12]}  Qxd5 {[%clk 0:01:56]} 19. Qc2 {[%clk 0:01:39]}  e4 {[%clk 0:01:54]} 20. Be2 {[%clk 0:01:34]}  g5 {[%clk 0:01:41]} 21. c4 {[%clk 0:01:33]}  Qe5 {[%clk 0:01:40]} 22. Nf3 {[%clk 0:01:29]}  Qc5 {[%clk 0:01:32]} 23. Nd2 {[%clk 0:01:27]}  Rfe8 {[%clk 0:01:26]} 24. Qc3 {[%clk 0:01:25]}  a5 {[%clk 0:01:24]} 25. Re1 {[%clk 0:01:20]}  Qb5 {[%clk 0:01:19]} 26. cxb5 {[%clk 0:01:17]} 1-0


[Site "https://www.chess.com"]

[Event "Titled Tuesday Blitz May 23 Late 2023"]
[White "Vega Gutierrez, Sabrina"]
[Black "Hamitevici, Vladimir"]
[WhiteFideId "2219026"]
[BlackFideId "13902393"]
[WhiteElo "2209"]
[BlackElo "2401"]
[Result "0-1"]
[Round "11"]
[TimeControl "180+2"]
[Date "2023.05.23"]
[WhiteClock "0:00:00"]
[BlackClock "0:00:05"]

1. e4 {[%clk 0:03:00]}  Nc6 {[%clk 0:02:59]} 2. d4 {[%clk 0:03:00]}  d6 {[%clk 0:02:58]} 3. Nc3 {[%clk 0:02:58]}  g6 {[%clk 0:02:57]} 4. h4 {[%clk 0:02:55]}  Nf6 {[%clk 0:02:56]} 5. Be2 {[%clk 0:02:44]}  h6 {[%clk 0:02:33]} 6. Be3 {[%clk 0:02:38]}  Bg7 {[%clk 0:02:30]} 7. h5 {[%clk 0:02:05]}  g5 {[%clk 0:02:27]} 8. f3 {[%clk 0:02:05]}  a6 {[%clk 0:02:20]} 9. Qd2 {[%clk 0:01:58]}  b5 {[%clk 0:02:20]} 10. Nd1 {[%clk 0:01:49]}  e6 {[%clk 0:01:40]} 11. Nf2 {[%clk 0:01:47]}  Nd7 {[%clk 0:01:37]} 12. O-O-O {[%clk 0:01:35]}  Nb6 {[%clk 0:01:33]} 13. b3 {[%clk 0:01:35]}  Bd7 {[%clk 0:01:14]} 14. Ngh3 {[%clk 0:01:35]}  e5 {[%clk 0:00:54]} 15. d5 {[%clk 0:01:15]}  Nd4 {[%clk 0:00:46]} 16. Bf1 {[%clk 0:00:47]}  Rc8 {[%clk 0:00:24]} 17. c3 {[%clk 0:00:47]}  c5 {[%clk 0:00:25]} 18. Kb1 {[%clk 0:00:39]}  b4 {[%clk 0:00:17]} 19. cxd4 {[%clk 0:00:25]}  exd4 {[%clk 0:00:17]} 20. Bxg5 {[%clk 0:00:17]}  hxg5 {[%clk 0:00:18]} 21. Nxg5 {[%clk 0:00:12]}  Qf6 {[%clk 0:00:15]} 22. Nd3 {[%clk 0:00:11]}  Bh6 {[%clk 0:00:08]} 23. f4 {[%clk 0:00:11]}  Bg4 {[%clk 0:00:08]} 24. Be2 {[%clk 0:00:09]}  Bxe2 {[%clk 0:00:05]} 25. Qxe2 {[%clk 0:00:10]}  O-O {[%clk 0:00:04]} 26. Qg4 {[%clk 0:00:04]}  Kh8 {[%clk 0:00:05]} 27. Rdg1 {[%clk 0:00:00]}  c4 {[%clk 0:00:05]} 0-1


[Site "https://www.chess.com"]

[Event "Titled Tuesday Blitz May 23 Late 2023"]
[White "Machidon, Cristi"]
[Black "Morefield, Jason"]
[WhiteFideId "13904590"]
[BlackFideId "30920825"]
[WhiteElo "2355"]
[BlackElo "2171"]
[Result "1-0"]
[Round "11"]
[TimeControl "180+2"]
[Date "2023.05.23"]
[WhiteClock "0:00:40"]
[BlackClock "0:00:14"]

1. d4 {[%clk 0:02:58]}  g6 {[%clk 0:03:00]} 2. e4 {[%clk 0:02:58]}  d6 {[%clk 0:03:01]} 3. Nc3 {[%clk 0:02:58]}  Bg7 {[%clk 0:03:01]} 4. Nf3 {[%clk 0:02:58]}  Nc6 {[%clk 0:02:59]} 5. Be3 {[%clk 0:02:58]}  Bg4 {[%clk 0:02:58]} 6. Bb5 {[%clk 0:02:54]}  a6 {[%clk 0:02:52]} 7. Bxc6+ {[%clk 0:02:52]}  bxc6 {[%clk 0:02:53]} 8. h3 {[%clk 0:02:51]}  Bxf3 {[%clk 0:02:52]} 9. Qxf3 {[%clk 0:02:50]}  Qd7 {[%clk 0:02:49]} 10. O-O-O {[%clk 0:02:44]}  Rb8 {[%clk 0:02:48]} 11. g4 {[%clk 0:02:40]}  e6 {[%clk 0:02:31]} 12. e5 {[%clk 0:02:32]}  c5 {[%clk 0:02:11]} 13. Rhe1 {[%clk 0:02:07]}  cxd4 {[%clk 0:02:07]} 14. Bxd4 {[%clk 0:02:07]}  d5 {[%clk 0:02:06]} 15. Qd3 {[%clk 0:02:03]}  Ne7 {[%clk 0:02:02]} 16. Qxa6 {[%clk 0:01:55]}  O-O {[%clk 0:02:01]} 17. Bc5 {[%clk 0:01:54]}  Rfc8 {[%clk 0:01:57]} 18. a3 {[%clk 0:01:42]}  Nc6 {[%clk 0:01:57]} 19. f4 {[%clk 0:01:41]}  g5 {[%clk 0:01:52]} 20. f5 {[%clk 0:01:36]}  Nxe5 {[%clk 0:01:49]} 21. fxe6 {[%clk 0:01:34]}  fxe6 {[%clk 0:01:50]} 22. Bd4 {[%clk 0:01:29]}  Nc6 {[%clk 0:01:37]} 23. Bxg7 {[%clk 0:01:21]}  Kxg7 {[%clk 0:01:38]} 24. Ne4 {[%clk 0:01:15]}  Rb6 {[%clk 0:01:33]} 25. Qd3 {[%clk 0:01:13]}  Qe7 {[%clk 0:01:32]} 26. Qc3+ {[%clk 0:01:06]}  Kg6 {[%clk 0:01:25]} 27. Nc5 {[%clk 0:01:04]}  Nd8 {[%clk 0:00:49]} 28. Rxd5 {[%clk 0:01:03]}  Rd6 {[%clk 0:00:44]} 29. Rde5 {[%clk 0:01:01]}  Qf7 {[%clk 0:00:39]} 30. Qe3 {[%clk 0:00:58]}  h6 {[%clk 0:00:39]} 31. Nxe6 {[%clk 0:00:50]}  Nc6 {[%clk 0:00:37]} 32. Re4 {[%clk 0:00:48]}  Rb8 {[%clk 0:00:29]} 33. Qc3 {[%clk 0:00:41]}  Qf2 {[%clk 0:00:14]} 34. Qg7# {[%clk 0:00:40]} 1-0


[Site "https://www.chess.com"]

[Event "Titled Tuesday Blitz May 23 Late 2023"]
[White "Timmermans, Mark"]
[Black "Martic, Ivan"]
[WhiteFideId "1026399"]
[BlackFideId "929301"]
[WhiteElo "2460"]
[BlackElo "2360"]
[Result "0-1"]
[Round "11"]
[TimeControl "180+2"]
[Date "2023.05.23"]
[WhiteClock "0:00:02"]
[BlackClock "0:00:08"]

1. e4 {[%clk 0:02:59]}  c5 {[%clk 0:02:59]} 2. Nf3 {[%clk 0:03:00]}  d6 {[%clk 0:02:59]} 3. d4 {[%clk 0:03:01]}  cxd4 {[%clk 0:03:00]} 4. Nxd4 {[%clk 0:03:02]}  Nf6 {[%clk 0:03:00]} 5. Nc3 {[%clk 0:03:02]}  Nc6 {[%clk 0:03:01]} 6. Nd5 {[%clk 0:03:02]}  e6 {[%clk 0:02:54]} 7. Nxf6+ {[%clk 0:02:57]}  gxf6 {[%clk 0:02:52]} 8. Be3 {[%clk 0:02:30]}  a6 {[%clk 0:02:51]} 9. Be2 {[%clk 0:02:30]}  Bd7 {[%clk 0:02:50]} 10. O-O {[%clk 0:02:28]}  Qc7 {[%clk 0:02:45]} 11. c4 {[%clk 0:02:26]}  Be7 {[%clk 0:02:40]} 12. Rc1 {[%clk 0:02:22]}  O-O {[%clk 0:02:37]} 13. Bh6 {[%clk 0:02:14]}  Rfc8 {[%clk 0:02:33]} 14. Qd3 {[%clk 0:02:09]}  Kh8 {[%clk 0:02:31]} 15. Nxc6 {[%clk 0:02:02]}  Bxc6 {[%clk 0:02:26]} 16. Bf3 {[%clk 0:01:23]}  Rg8 {[%clk 0:02:22]} 17. g3 {[%clk 0:01:23]}  Qa5 {[%clk 0:02:09]} 18. a3 {[%clk 0:01:22]}  Rg6 {[%clk 0:01:59]} 19. Bd2 {[%clk 0:01:21]}  Qd8 {[%clk 0:01:52]} 20. Bg2 {[%clk 0:01:21]}  b5 {[%clk 0:01:39]} 21. Rfd1 {[%clk 0:01:19]}  Qg8 {[%clk 0:01:30]} 22. cxb5 {[%clk 0:01:04]}  Bxb5 {[%clk 0:01:31]} 23. Qe3 {[%clk 0:01:04]}  Rb8 {[%clk 0:01:26]} 24. Bb4 {[%clk 0:00:56]}  Qd8 {[%clk 0:01:22]} 25. Rd2 {[%clk 0:00:50]}  a5 {[%clk 0:01:20]} 26. Bc3 {[%clk 0:00:49]}  Kg8 {[%clk 0:01:14]} 27. h4 {[%clk 0:00:44]}  h5 {[%clk 0:01:11]} 28. Qf3 {[%clk 0:00:42]}  Be8 {[%clk 0:00:57]} 29. Qxh5 {[%clk 0:00:42]}  Rb5 {[%clk 0:00:56]} 30. Qe2 {[%clk 0:00:41]}  f5 {[%clk 0:00:55]} 31. exf5 {[%clk 0:00:39]}  Rxf5 {[%clk 0:00:56]} 32. Be4 {[%clk 0:00:39]}  Bxh4 {[%clk 0:00:49]} 33. Bxf5 {[%clk 0:00:38]}  exf5 {[%clk 0:00:50]} 34. Re1 {[%clk 0:00:30]}  Bc6 {[%clk 0:00:44]} 35. Qh5 {[%clk 0:00:26]}  Bf6 {[%clk 0:00:44]} 36. Bxf6 {[%clk 0:00:26]}  Qxf6 {[%clk 0:00:44]} 37. Kf1 {[%clk 0:00:15]}  Rh6 {[%clk 0:00:39]} 38. Qd1 {[%clk 0:00:15]}  Rh1+ {[%clk 0:00:27]} 39. Ke2 {[%clk 0:00:15]}  Qe5+ {[%clk 0:00:27]} 40. Kd3 {[%clk 0:00:16]}  Rxe1 {[%clk 0:00:25]} 41. Qb3 {[%clk 0:00:09]}  Qe4+ {[%clk 0:00:18]} 42. Kc3 {[%clk 0:00:09]}  Rc1+ {[%clk 0:00:17]} 43. Rc2 {[%clk 0:00:09]}  Qe5+ {[%clk 0:00:16]} 44. Kd2 {[%clk 0:00:09]}  Qe1+ {[%clk 0:00:15]} 45. Kd3 {[%clk 0:00:10]}  Be4+ {[%clk 0:00:15]} 46. Kd4 {[%clk 0:00:08]}  Qd1+ {[%clk 0:00:13]} 47. Rd2 {[%clk 0:00:02]}  Qxb3 {[%clk 0:00:08]} 0-1


[Site "https://www.chess.com"]

[Event "Titled Tuesday Blitz May 23 Late 2023"]
[White "Bruedigam, Martin"]
[Black "Sun, Rick"]
[WhiteFideId "24608033"]
[BlackFideId "30909481"]
[WhiteElo "2331"]
[BlackElo "2169"]
[Result "0-1"]
[Round "11"]
[TimeControl "180+2"]
[Date "2023.05.23"]
[WhiteClock "0:00:02"]
[BlackClock "0:00:12"]

1. d4 {[%clk 0:03:00]}  d6 {[%clk 0:03:00]} 2. c4 {[%clk 0:02:59]}  Nf6 {[%clk 0:03:01]} 3. Nf3 {[%clk 0:02:52]}  g6 {[%clk 0:03:01]} 4. Nc3 {[%clk 0:02:49]}  Bg7 {[%clk 0:03:02]} 5. Bg5 {[%clk 0:02:48]}  O-O {[%clk 0:03:02]} 6. e3 {[%clk 0:02:48]}  Nbd7 {[%clk 0:03:02]} 7. Be2 {[%clk 0:02:47]}  c5 {[%clk 0:03:03]} 8. d5 {[%clk 0:02:46]}  a6 {[%clk 0:03:02]} 9. O-O {[%clk 0:02:45]}  b5 {[%clk 0:03:03]} 10. cxb5 {[%clk 0:02:44]}  Qa5 {[%clk 0:03:03]} 11. b6 {[%clk 0:02:44]}  Qxb6 {[%clk 0:03:02]} 12. Qc2 {[%clk 0:02:41]}  Rb8 {[%clk 0:02:51]} 13. Rab1 {[%clk 0:02:40]}  Re8 {[%clk 0:02:50]} 14. Nd2 {[%clk 0:02:35]}  Nf8 {[%clk 0:02:47]} 15. Nc4 {[%clk 0:02:33]}  Qc7 {[%clk 0:02:47]} 16. e4 {[%clk 0:02:32]}  h6 {[%clk 0:02:44]} 17. Bd2 {[%clk 0:02:22]}  g5 {[%clk 0:02:41]} 18. Rfe1 {[%clk 0:02:05]}  Ng6 {[%clk 0:02:38]} 19. Bf1 {[%clk 0:02:06]}  Nd7 {[%clk 0:02:29]} 20. Na4 {[%clk 0:01:58]}  Nde5 {[%clk 0:02:19]} 21. Ba5 {[%clk 0:01:54]}  Qd7 {[%clk 0:02:15]} 22. Nab6 {[%clk 0:01:43]}  Qg4 {[%clk 0:02:13]} 23. Kh1 {[%clk 0:01:36]}  Nf4 {[%clk 0:01:51]} 24. Nxe5 {[%clk 0:01:30]}  Bxe5 {[%clk 0:01:52]} 25. Nc4 {[%clk 0:01:26]}  Bg7 {[%clk 0:01:40]} 26. Bc3 {[%clk 0:01:18]}  Bd7 {[%clk 0:00:58]} 27. Bxg7 {[%clk 0:01:03]}  Kxg7 {[%clk 0:00:59]} 28. Qc3+ {[%clk 0:01:01]}  f6 {[%clk 0:00:57]} 29. g3 {[%clk 0:00:53]}  Ng6 {[%clk 0:00:44]} 30. Bg2 {[%clk 0:00:21]}  Ne5 {[%clk 0:00:38]} 31. Nxe5 {[%clk 0:00:09]}  fxe5 {[%clk 0:00:39]} 32. b4 {[%clk 0:00:10]}  cxb4 {[%clk 0:00:31]} 33. Rxb4 {[%clk 0:00:11]}  Rbc8 {[%clk 0:00:31]} 34. Qb2 {[%clk 0:00:11]}  Rc7 {[%clk 0:00:26]} 35. Rb7 {[%clk 0:00:10]}  Rec8 {[%clk 0:00:22]} 36. Rxc7 {[%clk 0:00:10]}  Rxc7 {[%clk 0:00:23]} 37. Rc1 {[%clk 0:00:10]}  Rxc1+ {[%clk 0:00:22]} 38. Qxc1 {[%clk 0:00:11]}  Qe2 {[%clk 0:00:22]} 39. Kg1 {[%clk 0:00:08]}  Bb5 {[%clk 0:00:19]} 40. a3 {[%clk 0:00:07]}  Bd3 {[%clk 0:00:18]} 41. h3 {[%clk 0:00:05]}  Bxe4 {[%clk 0:00:17]} 42. Qc7 {[%clk 0:00:05]}  Kf7 {[%clk 0:00:13]} 43. Qb6 {[%clk 0:00:01]}  Bxg2 {[%clk 0:00:11]} 44. Kxg2 {[%clk 0:00:01]}  Qb5 {[%clk 0:00:09]} 45. Qe3 {[%clk 0:00:01]}  Qxd5+ {[%clk 0:00:09]} 46. Kh2 {[%clk 0:00:01]}  Qc5 {[%clk 0:00:08]} 47. Qe2 {[%clk 0:00:02]}  Ke6 {[%clk 0:00:09]} 48. Qh5 {[%clk 0:00:02]}  Qxf2+ {[%clk 0:00:09]} 49. Kh1 {[%clk 0:00:02]}  Qf1+ {[%clk 0:00:09]} 50. Kh2 {[%clk 0:00:02]}  Qf2+ {[%clk 0:00:10]} 51. Kh1 {[%clk 0:00:03]}  Qf6 {[%clk 0:00:10]} 52. a4 {[%clk 0:00:03]}  e4 {[%clk 0:00:10]} 53. a5 {[%clk 0:00:03]}  Qf3+ {[%clk 0:00:10]} 54. Qxf3 {[%clk 0:00:03]}  exf3 {[%clk 0:00:11]} 55. Kg1 {[%clk 0:00:04]}  Ke5 {[%clk 0:00:12]} 56. Kf2 {[%clk 0:00:02]}  Ke4 {[%clk 0:00:12]} 0-1


[Site "https://www.chess.com"]

[Event "Titled Tuesday Blitz May 23 Late 2023"]
[White "Ladan, Nicholas"]
[Black "HamedWafa4"]
[WhiteFideId "30918855"]
[WhiteElo "2167"]
[BlackElo "2638"]
[Result "1-0"]
[Round "11"]
[TimeControl "180+2"]
[Date "2023.05.23"]
[WhiteClock "0:00:07"]
[BlackClock "0:00:04"]

1. d4 {[%clk 0:03:00]}  Nf6 {[%clk 0:02:57]} 2. c3 {[%clk 0:03:01]}  g6 {[%clk 0:02:50]} 3. Bg5 {[%clk 0:03:01]}  Bg7 {[%clk 0:02:47]} 4. Nd2 {[%clk 0:03:01]}  d5 {[%clk 0:02:46]} 5. e3 {[%clk 0:03:00]}  O-O {[%clk 0:02:44]} 6. Ngf3 {[%clk 0:02:59]}  c5 {[%clk 0:02:44]} 7. h3 {[%clk 0:02:57]}  Nc6 {[%clk 0:02:42]} 8. Bd3 {[%clk 0:02:56]}  Qb6 {[%clk 0:02:34]} 9. Qb3 {[%clk 0:02:43]}  c4 {[%clk 0:02:28]} 10. Qxb6 {[%clk 0:02:41]}  axb6 {[%clk 0:02:29]} 11. Bc2 {[%clk 0:02:40]}  Bf5 {[%clk 0:02:27]} 12. Bxf5 {[%clk 0:02:32]}  gxf5 {[%clk 0:02:28]} 13. Bxf6 {[%clk 0:02:32]}  Bxf6 {[%clk 0:02:26]} 14. g4 {[%clk 0:02:31]}  fxg4 {[%clk 0:02:19]} 15. hxg4 {[%clk 0:02:32]}  b5 {[%clk 0:02:18]} 16. g5 {[%clk 0:02:25]}  Bg7 {[%clk 0:02:17]} 17. Ke2 {[%clk 0:02:25]}  b4 {[%clk 0:02:16]} 18. Rh5 {[%clk 0:02:20]}  bxc3 {[%clk 0:02:14]} 19. bxc3 {[%clk 0:02:20]}  b5 {[%clk 0:02:11]} 20. Nh2 {[%clk 0:02:07]}  Ra3 {[%clk 0:02:07]} 21. Nb1 {[%clk 0:02:00]}  Ra4 {[%clk 0:02:05]} 22. a3 {[%clk 0:01:58]}  b4 {[%clk 0:01:52]} 23. cxb4 {[%clk 0:01:56]}  Nxb4 {[%clk 0:01:51]} 24. Nc3 {[%clk 0:01:39]}  Ra5 {[%clk 0:01:49]} 25. Ng4 {[%clk 0:01:36]}  Nc2 {[%clk 0:01:46]} 26. Rah1 {[%clk 0:01:32]}  Rb8 {[%clk 0:01:35]} 27. Rxh7 {[%clk 0:01:28]}  Rb2 {[%clk 0:01:24]} 28. Kf3 {[%clk 0:01:18]}  Nxd4+ {[%clk 0:01:21]} 29. exd4 {[%clk 0:00:45]}  Rxa3 {[%clk 0:01:17]} 30. Kf4 {[%clk 0:00:46]}  Rxc3 {[%clk 0:01:16]} 31. R7h5 {[%clk 0:00:35]}  Rd2 {[%clk 0:01:08]} 32. Nh6+ {[%clk 0:00:31]}  Kf8 {[%clk 0:01:08]} 33. Nf5 {[%clk 0:00:29]}  Rxf2+ {[%clk 0:01:07]} 34. Kg4 {[%clk 0:00:28]}  Rxf5 {[%clk 0:00:24]} 35. Kxf5 {[%clk 0:00:26]}  Bxd4 {[%clk 0:00:25]} 36. g6 {[%clk 0:00:14]}  fxg6+ {[%clk 0:00:23]} 37. Kxg6 {[%clk 0:00:14]}  Rg3+ {[%clk 0:00:19]} 38. Kf5 {[%clk 0:00:15]}  Kf7 {[%clk 0:00:15]} 39. Rh7+ {[%clk 0:00:12]}  Bg7 {[%clk 0:00:15]} 40. Kf4 {[%clk 0:00:11]}  Rd3 {[%clk 0:00:13]} 41. Rg1 {[%clk 0:00:07]}  Rd4+ {[%clk 0:00:13]} 42. Kf3 {[%clk 0:00:07]}  Rd3+ {[%clk 0:00:12]} 43. Ke2 {[%clk 0:00:07]}  e5 {[%clk 0:00:07]} 44. Rhxg7+ {[%clk 0:00:07]}  Ke6 {[%clk 0:00:08]} 45. R7g6+ {[%clk 0:00:08]}  Kf5 {[%clk 0:00:05]} 46. R6g5+ {[%clk 0:00:07]}  Ke4 {[%clk 0:00:04]} 47. R1g4# {[%clk 0:00:07]} 1-0


[Site "https://www.chess.com"]

[Event "Titled Tuesday Blitz May 23 Late 2023"]
[White "Janaszak, Dawid"]
[Black "Korchmar, Vasiliy"]
[WhiteFideId "1119206"]
[BlackFideId "24131750"]
[WhiteElo "2220"]
[BlackElo "2370"]
[Result "0-1"]
[Round "11"]
[TimeControl "180+2"]
[Date "2023.05.23"]
[WhiteClock "0:00:08"]
[BlackClock "0:00:17"]

1. e4 {[%clk 0:03:00]}  c5 {[%clk 0:02:53]} 2. b3 {[%clk 0:02:58]}  d5 {[%clk 0:02:43]} 3. exd5 {[%clk 0:02:56]}  Nf6 {[%clk 0:02:43]} 4. Bb2 {[%clk 0:02:53]}  Nxd5 {[%clk 0:02:43]} 5. Nc3 {[%clk 0:02:52]}  Nf6 {[%clk 0:02:39]} 6. Nf3 {[%clk 0:02:46]}  g6 {[%clk 0:02:39]} 7. d4 {[%clk 0:02:45]}  Bg7 {[%clk 0:02:35]} 8. dxc5 {[%clk 0:02:43]}  Qa5 {[%clk 0:02:35]} 9. Bb5+ {[%clk 0:02:29]}  Bd7 {[%clk 0:02:34]} 10. Bxd7+ {[%clk 0:02:24]}  Nbxd7 {[%clk 0:02:34]} 11. c6 {[%clk 0:02:21]}  bxc6 {[%clk 0:02:31]} 12. O-O {[%clk 0:02:20]}  O-O {[%clk 0:02:29]} 13. Qe2 {[%clk 0:02:09]}  Rfe8 {[%clk 0:02:28]} 14. Rfd1 {[%clk 0:02:05]}  Nb6 {[%clk 0:02:26]} 15. Qe5 {[%clk 0:01:59]}  Nfd5 {[%clk 0:02:21]} 16. Qxg7+ {[%clk 0:01:42]}  Kxg7 {[%clk 0:02:22]} 17. Nxd5+ {[%clk 0:01:41]}  Kg8 {[%clk 0:02:22]} 18. Nc7 {[%clk 0:01:38]}  Qf5 {[%clk 0:02:14]} 19. Nxa8 {[%clk 0:01:31]}  Rxa8 {[%clk 0:02:15]} 20. Nd4 {[%clk 0:01:29]}  Qf6 {[%clk 0:02:11]} 21. Rab1 {[%clk 0:01:24]}  Nd5 {[%clk 0:02:10]} 22. c4 {[%clk 0:01:18]}  Nf4 {[%clk 0:02:09]} 23. Nf3 {[%clk 0:01:16]}  Qf5 {[%clk 0:02:06]} 24. Be5 {[%clk 0:00:57]}  a5 {[%clk 0:01:42]} 25. Bxf4 {[%clk 0:00:53]}  Qxf4 {[%clk 0:01:42]} 26. Rd4 {[%clk 0:00:51]}  Qf5 {[%clk 0:01:40]} 27. Re1 {[%clk 0:00:51]}  a4 {[%clk 0:01:37]} 28. b4 {[%clk 0:00:52]}  a3 {[%clk 0:01:18]} 29. Rde4 {[%clk 0:00:41]}  Qf6 {[%clk 0:01:05]} 30. Nd4 {[%clk 0:00:40]}  Rd8 {[%clk 0:00:55]} 31. Nb3 {[%clk 0:00:40]}  Qb2 {[%clk 0:00:51]} 32. h4 {[%clk 0:00:24]}  Qxa2 {[%clk 0:00:50]} 33. R4e3 {[%clk 0:00:25]}  Qb2 {[%clk 0:00:45]} 34. R1e2 {[%clk 0:00:25]}  Qb1+ {[%clk 0:00:36]} 35. Kh2 {[%clk 0:00:26]}  a2 {[%clk 0:00:35]} 36. b5 {[%clk 0:00:25]}  cxb5 {[%clk 0:00:34]} 37. cxb5 {[%clk 0:00:26]}  e6 {[%clk 0:00:27]} 38. b6 {[%clk 0:00:22]}  Rb8 {[%clk 0:00:26]} 39. Rc3 {[%clk 0:00:13]}  Rxb6 {[%clk 0:00:24]} 40. Rc8+ {[%clk 0:00:12]}  Kg7 {[%clk 0:00:24]} 41. Nd4 {[%clk 0:00:12]}  a1=Q {[%clk 0:00:21]} 42. Nf3 {[%clk 0:00:12]}  Qh1+ {[%clk 0:00:19]} 43. Kg3 {[%clk 0:00:12]}  Qaf1 {[%clk 0:00:18]} 44. Kf4 {[%clk 0:00:08]}  Qxe2 {[%clk 0:00:17]} 0-1


[Site "https://www.chess.com"]